Workbook

Sheet MonsterPowerUpConfig
A1: ID | B1: HeroLevel | C1: jingjie1 | D1: jingjie2 | E1: jingjie3 | I1: HPFactor | J1: ATKFactor | K1: DEFFactor | L1: MPFactor | M1: HudunFactor | N1: defK | O1: GongfaLv | P1: GongfaStar | Q1: FabaoLv | R1: FabaoStar
A2: int | B2: int | I2: float | J2: float | K2: float | L2: float | M2: float | N2: int | O2: int | P2: int | Q2: int | R2: int
A4: ID | B4: 玩家修为境界（等级） | C4: 大境界ID | D4: 中境界ID | E4: 小境界ID | F4: 境界名称1 | G4: 境界名称2 | H4: 境界名称3 | I4: 生命倍率 | J4: 攻击倍率 | K4: 防御倍率 | L4: 法力倍率 | M4: 护盾倍率 | N4: 防御系数K | O4: 功法等级 | P4: 功法星级 | Q4: 法宝等级 | R4: 法宝星级
A5: 1 | B5: 1 | C5: 1 | D5: 1 | E5: =H5 -> 1 | F5: 筑基期 | G5: 前 | H5: 1 | I5: =[1]主表!$F3*20 -> 20.167 | J5: =[1]主表!$H3 -> 1.005 | K5: =[1]主表!$G3 -> 1.005 | L5: 1 | M5: =[1]主表!$I3 -> 0 | N5: =[1]主表!$E3 -> 101 | O5: 1 | P5: 1 | Q5: 1 | R5: 1
A6: 2 | B6: 2 | C6: 1 | D6: 1 | E6: =H6 -> 2 | F6: 筑基期 | G6: 前 | H6: 2 | I6: =[1]主表!$F4*20 -> 20.74136 | J6: =[1]主表!$H4 -> 1.0302 | K6: =[1]主表!$G4 -> 1.0302 | L6: 1 | M6: =[1]主表!$I4 -> 0 | N6: =[1]主表!$E4 -> 103 | O6: 1 | P6: 1 | Q6: 1 | R6: 1
A7: 3 | B7: 3 | C7: 1 | D7: 1 | E7: 3 | F7: 筑基期 | G7: 前 | H7: 3 | I7: =[1]主表!$F5*20 -> 21.32312 | J7: =[1]主表!$H5 -> 1.0556 | K7: =[1]主表!$G5 -> 1.0556 | L7: 1 | M7: =[1]主表!$I5 -> 0 | N7: =[1]主表!$E5 -> 106 | O7: 1 | P7: 1 | Q7: 1 | R7: 1
A8: 4 | B8: 4 | C8: 1 | D8: 1 | E8: 4 | F8: 筑基期 | G8: 前 | H8: 4 | I8: =[1]主表!$F6*20 -> 21.91232 | J8: =[1]主表!$H6 -> 1.0812 | K8: =[1]主表!$G6 -> 1.0812 | L8: 1 | M8: =[1]主表!$I6 -> 0 | N8: =[1]主表!$E6 -> 108 | O8: 1 | P8: 1 | Q8: 1 | R8: 1
A9: 5 | B9: 5 | C9: 1 | D9: 1 | E9: 5 | F9: 筑基期 | G9: 前 | H9: 5 | I9: =[1]主表!$F7*20 -> 22.509 | J9: =[1]主表!$H7 -> 1.107 | K9: =[1]主表!$G7 -> 1.107 | L9: 1 | M9: =[1]主表!$I7 -> 0 | N9: =[1]主表!$E7 -> 111 | O9: 1 | P9: 1 | Q9: 1 | R9: 1
A10: 6 | B10: 6 | C10: 1 | D10: 1 | E10: 6 | F10: 筑基期 | G10: 前 | H10: 6 | I10: =[1]主表!$F8*20 -> 23.1132 | J10: =[1]主表!$H8 -> 1.133 | K10: =[1]主表!$G8 -> 1.133 | L10: 1 | M10: =[1]主表!$I8 -> 0 | N10: =[1]主表!$E8 -> 113 | O10: 2 | P10: 1 | Q10: 1 | R10: 1
A11: 7 | B11: 7 | C11: 1 | D11: 1 | E11: 7 | F11: 筑基期 | G11: 前 | H11: 7 | I11: =[1]主表!$F9*20 -> 23.72496 | J11: =[1]主表!$H9 -> 1.1592 | K11: =[1]主表!$G9 -> 1.1592 | L11: 1 | M11: =[1]主表!$I9 -> 0 | N11: =[1]主表!$E9 -> 116 | O11: 2 | P11: 1 | Q11: 1 | R11: 1
A12: 8 | B12: 8 | C12: 1 | D12: 1 | E12: 8 | F12: 筑基期 | G12: 前 | H12: 8 | I12: =[1]主表!$F10*20 -> 24.34432 | J12: =[1]主表!$H10 -> 1.1856 | K12: =[1]主表!$G10 -> 1.1856 | L12: 1 | M12: =[1]主表!$I10 -> 0 | N12: =[1]主表!$E10 -> 119 | O12: 2 | P12: 1 | Q12: 1 | R12: 1
A13: 9 | B13: 9 | C13: 1 | D13: 1 | E13: 9 | F13: 筑基期 | G13: 前 | H13: 9 | I13: =[1]主表!$F11*20 -> 24.97132 | J13: =[1]主表!$H11 -> 1.2122 | K13: =[1]主表!$G11 -> 1.2122 | L13: 1 | M13: =[1]主表!$I11 -> 0 | N13: =[1]主表!$E11 -> 121 | O13: 2 | P13: 1 | Q13: 1 | R13: 1
A14: 10 | B14: 10 | C14: 1 | D14: 1 | E14: 10 | F14: 筑基期 | G14: 前 | H14: 10 | I14: =[1]主表!$F12*20 -> 26.474 | J14: =[1]主表!$H12 -> 1.281 | K14: =[1]主表!$G12 -> 1.281 | L14: 1 | M14: =[1]主表!$I12 -> 0 | N14: =[1]主表!$E12 -> 128 | O14: 2 | P14: 1 | Q14: 1 | R14: 1
A15: 11 | B15: 11 | C15: 1 | D15: 2 | E15: 1 | F15: 筑基期 | G15: 中 | H15: 1 | I15: =[1]主表!$F13*20 -> 27.12334667 | J15: =[1]主表!$H13 -> 1.3082 | K15: =[1]主表!$G13 -> 1.3082 | L15: 1 | M15: =[1]主表!$I13 -> 0 | N15: =[1]主表!$E13 -> 131 | O15: 3 | P15: 1 | Q15: =Q5+1 -> 2 | R15: 1
A16: 12 | B16: 12 | C16: 1 | D16: 2 | E16: 2 | F16: 筑基期 | G16: 中 | H16: 2 | I16: =[1]主表!$F14*20 -> 27.78048 | J16: =[1]主表!$H14 -> 1.3356 | K16: =[1]主表!$G14 -> 1.3356 | L16: 1 | M16: =[1]主表!$I14 -> 0 | N16: =[1]主表!$E14 -> 134 | O16: 3 | P16: 1 | Q16: =Q6+1 -> 2 | R16: 1
A17: 13 | B17: 13 | C17: 1 | D17: 2 | E17: 3 | F17: 筑基期 | G17: 中 | H17: 3 | I17: =[1]主表!$F15*20 -> 28.44544 | J17: =[1]主表!$H15 -> 1.3632 | K17: =[1]主表!$G15 -> 1.3632 | L17: 1 | M17: =[1]主表!$I15 -> 0 | N17: =[1]主表!$E15 -> 136 | O17: 3 | P17: 1 | Q17: 2 | R17: 1
A18: 14 | B18: 14 | C18: 1 | D18: 2 | E18: 4 | F18: 筑基期 | G18: 中 | H18: 4 | I18: =[1]主表!$F16*20 -> 29.11826667 | J18: =[1]主表!$H16 -> 1.391 | K18: =[1]主表!$G16 -> 1.391 | L18: 1 | M18: =[1]主表!$I16 -> 0 | N18: =[1]主表!$E16 -> 139 | O18: 3 | P18: 1 | Q18: 2 | R18: 1
A19: 15 | B19: 15 | C19: 1 | D19: 2 | E19: 5 | F19: 筑基期 | G19: 中 | H19: 5 | I19: =[1]主表!$F17*20 -> 29.799 | J19: =[1]主表!$H17 -> 1.419 | K19: =[1]主表!$G17 -> 1.419 | L19: 1 | M19: =[1]主表!$I17 -> 0 | N19: =[1]主表!$E17 -> 142 | O19: 3 | P19: 1 | Q19: 2 | R19: 1
A20: 16 | B20: 16 | C20: 1 | D20: 2 | E20: 6 | F20: 筑基期 | G20: 中 | H20: 6 | I20: =[1]主表!$F18*20 -> 30.48768 | J20: =[1]主表!$H18 -> 1.4472 | K20: =[1]主表!$G18 -> 1.4472 | L20: 1 | M20: =[1]主表!$I18 -> 0 | N20: =[1]主表!$E18 -> 145 | O20: 4 | P20: 1 | Q20: 2 | R20: 1
A21: 17 | B21: 17 | C21: 1 | D21: 2 | E21: 7 | F21: 筑基期 | G21: 中 | H21: 7 | I21: =[1]主表!$F19*20 -> 31.18434667 | J21: =[1]主表!$H19 -> 1.4756 | K21: =[1]主表!$G19 -> 1.4756 | L21: 1 | M21: =[1]主表!$I19 -> 0 | N21: =[1]主表!$E19 -> 148 | O21: 4 | P21: 1 | Q21: 2 | R21: 1
A22: 18 | B22: 18 | C22: 1 | D22: 2 | E22: 8 | F22: 筑基期 | G22: 中 | H22: 8 | I22: =[1]主表!$F20*20 -> 31.88904 | J22: =[1]主表!$H20 -> 1.5042 | K22: =[1]主表!$G20 -> 1.5042 | L22: 1 | M22: =[1]主表!$I20 -> 0 | N22: =[1]主表!$E20 -> 150 | O22: 4 | P22: 1 | Q22: 2 | R22: 1
A23: 19 | B23: 19 | C23: 1 | D23: 2 | E23: 9 | F23: 筑基期 | G23: 中 | H23: 9 | I23: =[1]主表!$F21*20 -> 32.6018 | J23: =[1]主表!$H21 -> 1.533 | K23: =[1]主表!$G21 -> 1.533 | L23: 1 | M23: =[1]主表!$I21 -> 0 | N23: =[1]主表!$E21 -> 153 | O23: 4 | P23: 1 | Q23: 2 | R23: 1
A24: 20 | B24: 20 | C24: 1 | D24: 2 | E24: 10 | F24: 筑基期 | G24: 中 | H24: 10 | I24: =[1]主表!$F22*20 -> 35.2 | J24: =[1]主表!$H22 -> 1.65 | K24: =[1]主表!$G22 -> 1.65 | L24: 1 | M24: =[1]主表!$I22 -> 0 | N24: =[1]主表!$E22 -> 165 | O24: 4 | P24: 1 | Q24: 2 | R24: 1
A25: 21 | B25: 21 | C25: 1 | D25: 3 | E25: 1 | F25: 筑基期 | G25: 后 | H25: 1 | I25: =[1]主表!$F23*20 -> 35.94344 | J25: =[1]主表!$H23 -> 1.6796 | K25: =[1]主表!$G23 -> 1.6796 | L25: 1 | M25: =[1]主表!$I23 -> 0 | N25: =[1]主表!$E23 -> 168 | O25: 5 | P25: 1 | Q25: 3 | R25: 1
A26: 22 | B26: 22 | C26: 1 | D26: 3 | E26: 2 | F26: 筑基期 | G26: 后 | H26: 2 | I26: =[1]主表!$F24*20 -> 36.69512 | J26: =[1]主表!$H24 -> 1.7094 | K26: =[1]主表!$G24 -> 1.7094 | L26: 1 | M26: =[1]主表!$I24 -> 0 | N26: =[1]主表!$E24 -> 171 | O26: 5 | P26: 1 | Q26: 3 | R26: 1
A27: 23 | B27: 23 | C27: 1 | D27: 3 | E27: 3 | F27: 筑基期 | G27: 后 | H27: 3 | I27: =[1]主表!$F25*20 -> 37.93527333 | J27: =[1]主表!$H25 -> 1.7617 | K27: =[1]主表!$G25 -> 1.7617 | L27: 1 | M27: =[1]主表!$I25 -> 0 | N27: =[1]主表!$E25 -> 176 | O27: 5 | P27: 1 | Q27: 3 | R27: 1
A28: 24 | B28: 24 | C28: 1 | D28: 3 | E28: 4 | F28: 筑基期 | G28: 后 | H28: 4 | I28: =[1]主表!$F26*20 -> 38.7072 | J28: =[1]主表!$H26 -> 1.792 | K28: =[1]主表!$G26 -> 1.792 | L28: 1 | M28: =[1]主表!$I26 -> 0 | N28: =[1]主表!$E26 -> 179 | O28: 5 | P28: 1 | Q28: 3 | R28: 1
A29: 25 | B29: 25 | C29: 1 | D29: 3 | E29: 5 | F29: 筑基期 | G29: 后 | H29: 5 | I29: =[1]主表!$F27*20 -> 39.4875 | J29: =[1]主表!$H27 -> 1.8225 | K29: =[1]主表!$G27 -> 1.8225 | L29: 1 | M29: =[1]主表!$I27 -> 0 | N29: =[1]主表!$E27 -> 182 | O29: 5 | P29: 1 | Q29: 3 | R29: 1
A30: 26 | B30: 26 | C30: 1 | D30: 3 | E30: 6 | F30: 筑基期 | G30: 后 | H30: 6 | I30: =[1]主表!$F28*20 -> 40.76738667 | J30: =[1]主表!$H28 -> 1.8758 | K30: =[1]主表!$G28 -> 1.8758 | L30: 1 | M30: =[1]主表!$I28 -> 0 | N30: =[1]主表!$E28 -> 188 | O30: 6 | P30: 1 | Q30: 3 | R30: 1
A31: 27 | B31: 27 | C31: 1 | D31: 3 | E31: 7 | F31: 筑基期 | G31: 后 | H31: 7 | I31: =[1]主表!$F29*20 -> 41.56824 | J31: =[1]主表!$H29 -> 1.9068 | K31: =[1]主表!$G29 -> 1.9068 | L31: 1 | M31: =[1]主表!$I29 -> 0 | N31: =[1]主表!$E29 -> 191 | O31: 6 | P31: 1 | Q31: 3 | R31: 1
A32: 28 | B32: 28 | C32: 1 | D32: 3 | E32: 8 | F32: 筑基期 | G32: 后 | H32: 8 | I32: =[1]主表!$F30*20 -> 42.3776 | J32: =[1]主表!$H30 -> 1.938 | K32: =[1]主表!$G30 -> 1.938 | L32: 1 | M32: =[1]主表!$I30 -> 0 | N32: =[1]主表!$E30 -> 194 | O32: 6 | P32: 1 | Q32: 3 | R32: 1
A33: 29 | B33: 29 | C33: 1 | D33: 3 | E33: 9 | F33: 筑基期 | G33: 后 | H33: 9 | I33: =[1]主表!$F31*20 -> 43.69778 | J33: =[1]主表!$H31 -> 1.9923 | K33: =[1]主表!$G31 -> 1.9923 | L33: 1 | M33: =[1]主表!$I31 -> 0 | N33: =[1]主表!$E31 -> 199 | O33: 6 | P33: 1 | Q33: 3 | R33: 1
A34: 30 | B34: 30 | C34: 1 | D34: 3 | E34: 10 | F34: 筑基期 | G34: 后 | H34: 10 | I34: =[1]主表!$F32*20 -> 49.588 | J34: =[1]主表!$H32 -> 2.254 | K34: =[1]主表!$G32 -> 2.254 | L34: 1 | M34: =[1]主表!$I32 -> 0 | N34: =[1]主表!$E32 -> 225 | O34: 6 | P34: 1 | Q34: 3 | R34: 1
A35: 31 | B35: 31 | C35: 2 | D35: 4 | E35: 1 | F35: 金丹期 | G35: 前 | H35: 1 | I35: =[1]主表!$F33*20 -> 50.974 | J35: =[1]主表!$H33 -> 2.31 | K35: =[1]主表!$G33 -> 2.31 | L35: 1 | M35: =[1]主表!$I33 -> 0 | N35: =[1]主表!$E33 -> 231 | O35: 7 | P35: 2 | Q35: 4 | R35: 2
A36: 32 | B36: 32 | C36: 2 | D36: 4 | E36: 2 | F36: 金丹期 | G36: 前 | H36: 2 | I36: =[1]主表!$F34*20 -> 52.37632 | J36: =[1]主表!$H34 -> 2.3664 | K36: =[1]主表!$G34 -> 2.3664 | L36: 1 | M36: =[1]主表!$I34 -> 0 | N36: =[1]主表!$E34 -> 237 | O36: 7 | P36: 2 | Q36: 4 | R36: 2
A37: 33 | B37: 33 | C37: 2 | D37: 4 | E37: 3 | F37: 金丹期 | G37: 前 | H37: 3 | I37: =[1]主表!$F35*20 -> 53.27778 | J37: =[1]主表!$H35 -> 2.3999 | K37: =[1]主表!$G35 -> 2.3999 | L37: 1 | M37: =[1]主表!$I35 -> 0 | N37: =[1]主表!$E35 -> 240 | O37: 7 | P37: 2 | Q37: 4 | R37: 2
A38: 34 | B38: 34 | C38: 2 | D38: 4 | E38: 4 | F38: 金丹期 | G38: 前 | H38: 4 | I38: =[1]主表!$F36*20 -> 54.7092 | J38: =[1]主表!$H36 -> 2.457 | K38: =[1]主表!$G36 -> 2.457 | L38: 1 | M38: =[1]主表!$I36 -> 0 | N38: =[1]主表!$E36 -> 246 | O38: 7 | P38: 2 | Q38: 4 | R38: 2
A39: 35 | B39: 35 | C39: 2 | D39: 4 | E39: 5 | F39: 金丹期 | G39: 前 | H39: 5 | I39: =[1]主表!$F37*20 -> 56.15716667 | J39: =[1]主表!$H37 -> 2.5145 | K39: =[1]主表!$G37 -> 2.5145 | L39: 1 | M39: =[1]主表!$I37 -> 0 | N39: =[1]主表!$E37 -> 251 | O39: 7 | P39: 2 | Q39: 4 | R39: 2
A40: 36 | B40: 36 | C40: 2 | D40: 4 | E40: 6 | F40: 金丹期 | G40: 前 | H40: 6 | I40: =[1]主表!$F38*20 -> 57.09312 | J40: =[1]主表!$H38 -> 2.5488 | K40: =[1]主表!$G38 -> 2.5488 | L40: 1 | M40: =[1]主表!$I38 -> 0 | N40: =[1]主表!$E38 -> 255 | O40: 8 | P40: 2 | Q40: 4 | R40: 2
A41: 37 | B41: 37 | C41: 2 | D41: 4 | E41: 7 | F41: 金丹期 | G41: 前 | H41: 7 | I41: =[1]主表!$F39*20 -> 58.5706 | J41: =[1]主表!$H39 -> 2.607 | K41: =[1]主表!$G39 -> 2.607 | L41: 1 | M41: =[1]主表!$I39 -> 0 | N41: =[1]主表!$E39 -> 261 | O41: 8 | P41: 2 | Q41: 4 | R41: 2
A42: 38 | B42: 38 | C42: 2 | D42: 4 | E42: 8 | F42: 金丹期 | G42: 前 | H42: 8 | I42: =[1]主表!$F40*20 -> 60.06485333 | J42: =[1]主表!$H40 -> 2.6656 | K42: =[1]主表!$G40 -> 2.6656 | L42: 1 | M42: =[1]主表!$I40 -> 0 | N42: =[1]主表!$E40 -> 267 | O42: 8 | P42: 2 | Q42: 4 | R42: 2
A43: 39 | B43: 39 | C43: 2 | D43: 4 | E43: 9 | F43: 金丹期 | G43: 前 | H43: 9 | I43: =[1]主表!$F41*20 -> 61.57596 | J43: =[1]主表!$H41 -> 2.7246 | K43: =[1]主表!$G41 -> 2.7246 | L43: 1 | M43: =[1]主表!$I41 -> 0 | N43: =[1]主表!$E41 -> 272 | O43: 8 | P43: 2 | Q43: 4 | R43: 2
A44: 40 | B44: 40 | C44: 2 | D44: 4 | E44: 10 | F44: 金丹期 | G44: 前 | H44: 10 | I44: =[1]主表!$F42*20 -> 65.824 | J44: =[1]主表!$H42 -> 2.904 | K44: =[1]主表!$G42 -> 2.904 | L44: 1 | M44: =[1]主表!$I42 -> 0 | N44: =[1]主表!$E42 -> 290 | O44: 8 | P44: 2 | Q44: 4 | R44: 2
A45: 41 | B45: 41 | C45: 2 | D45: 5 | E45: 1 | F45: 金丹期 | G45: 中 | H45: 1 | I45: =[1]主表!$F43*20 -> 67.38842 | J45: =[1]主表!$H43 -> 2.9643 | K45: =[1]主表!$G43 -> 2.9643 | L45: 1 | M45: =[1]主表!$I43 -> 0 | N45: =[1]主表!$E43 -> 296 | O45: 9 | P45: 2 | Q45: 5 | R45: 2
A46: 42 | B46: 42 | C46: 2 | D46: 5 | E46: 2 | F46: 金丹期 | G46: 中 | H46: 2 | I46: =[1]主表!$F44*20 -> 68.97 | J46: =[1]主表!$H44 -> 3.025 | K46: =[1]主表!$G44 -> 3.025 | L46: 1 | M46: =[1]主表!$I44 -> 0 | N46: =[1]主表!$E44 -> 303 | O46: 9 | P46: 2 | Q46: 5 | R46: 2
A47: 43 | B47: 43 | C47: 2 | D47: 5 | E47: 3 | F47: 金丹期 | G47: 中 | H47: 3 | I47: =[1]主表!$F45*20 -> 70.56882 | J47: =[1]主表!$H45 -> 3.0861 | K47: =[1]主表!$G45 -> 3.0861 | L47: 1 | M47: =[1]主表!$I45 -> 0 | N47: =[1]主表!$E45 -> 309 | O47: 9 | P47: 2 | Q47: 5 | R47: 2
A48: 44 | B48: 44 | C48: 2 | D48: 5 | E48: 4 | F48: 金丹期 | G48: 中 | H48: 4 | I48: =[1]主表!$F46*20 -> 72.74453333 | J48: =[1]主表!$H46 -> 3.172 | K48: =[1]主表!$G46 -> 3.172 | L48: 1 | M48: =[1]主表!$I46 -> 0 | N48: =[1]主表!$E46 -> 317 | O48: 9 | P48: 2 | Q48: 5 | R48: 2
A49: 45 | B49: 45 | C49: 2 | D49: 5 | E49: 5 | F49: 金丹期 | G49: 中 | H49: 5 | I49: =[1]主表!$F47*20 -> 74.382 | J49: =[1]主表!$H47 -> 3.234 | K49: =[1]主表!$G47 -> 3.234 | L49: 1 | M49: =[1]主表!$I47 -> 0 | N49: =[1]主表!$E47 -> 323 | O49: 9 | P49: 2 | Q49: 5 | R49: 2
A50: 46 | B50: 46 | C50: 2 | D50: 5 | E50: 6 | F50: 金丹期 | G50: 中 | H50: 6 | I50: =[1]主表!$F48*20 -> 76.03696 | J50: =[1]主表!$H48 -> 3.2964 | K50: =[1]主表!$G48 -> 3.2964 | L50: 1 | M50: =[1]主表!$I48 -> 0 | N50: =[1]主表!$E48 -> 330 | O50: 10 | P50: 2 | Q50: 5 | R50: 2
A51: 47 | B51: 47 | C51: 2 | D51: 5 | E51: 7 | F51: 金丹期 | G51: 中 | H51: 7 | I51: =[1]主表!$F49*20 -> 77.70949333 | J51: =[1]主表!$H49 -> 3.3592 | K51: =[1]主表!$G49 -> 3.3592 | L51: 1 | M51: =[1]主表!$I49 -> 0 | N51: =[1]主表!$E49 -> 336 | O51: 10 | P51: 2 | Q51: 5 | R51: 2
A52: 48 | B52: 48 | C52: 2 | D52: 5 | E52: 8 | F52: 金丹期 | G52: 中 | H52: 8 | I52: =[1]主表!$F50*20 -> 79.39968 | J52: =[1]主表!$H50 -> 3.4224 | K52: =[1]主表!$G50 -> 3.4224 | L52: 1 | M52: =[1]主表!$I50 -> 0 | N52: =[1]主表!$E50 -> 342 | O52: 10 | P52: 2 | Q52: 5 | R52: 2
A53: 49 | B53: 49 | C53: 2 | D53: 5 | E53: 9 | F53: 金丹期 | G53: 中 | H53: 9 | I53: =[1]主表!$F51*20 -> 81.68694 | J53: =[1]主表!$H51 -> 3.5109 | K53: =[1]主表!$G51 -> 3.5109 | L53: 1 | M53: =[1]主表!$I51 -> 0 | N53: =[1]主表!$E51 -> 351 | O53: 10 | P53: 2 | Q53: 5 | R53: 2
A54: 50 | B54: 50 | C54: 2 | D54: 5 | E54: 10 | F54: 金丹期 | G54: 中 | H54: 10 | I54: =[1]主表!$F52*20 -> 87.5 | J54: =[1]主表!$H52 -> 3.75 | K54: =[1]主表!$G52 -> 3.75 | L54: 1 | M54: =[1]主表!$I52 -> 0 | N54: =[1]主表!$E52 -> 375 | O54: 10 | P54: 2 | Q54: 5 | R54: 2
A55: 51 | B55: 51 | C55: 2 | D55: 6 | E55: 1 | F55: 金丹期 | G55: 后 | H55: 1 | I55: =[1]主表!$F53*20 -> 89.27568 | J55: =[1]主表!$H53 -> 3.8152 | K55: =[1]主表!$G53 -> 3.8152 | L55: 1 | M55: =[1]主表!$I53 -> 0 | N55: =[1]主表!$E53 -> 382 | O55: 11 | P55: 2 | Q55: 6 | R55: 2
A56: 52 | B56: 52 | C56: 2 | D56: 6 | E56: 2 | F56: 金丹期 | G56: 后 | H56: 2 | I56: =[1]主表!$F54*20 -> 91.6608 | J56: =[1]主表!$H54 -> 3.906 | K56: =[1]主表!$G54 -> 3.906 | L56: 1 | M56: =[1]主表!$I54 -> 0 | N56: =[1]主表!$E54 -> 391 | O56: 11 | P56: 2 | Q56: 6 | R56: 2
A57: 53 | B57: 53 | C57: 2 | D57: 6 | E57: 3 | F57: 金丹期 | G57: 后 | H57: 3 | I57: =[1]主表!$F55*20 -> 93.47675333 | J57: =[1]主表!$H55 -> 3.9721 | K57: =[1]主表!$G55 -> 3.9721 | L57: 1 | M57: =[1]主表!$I55 -> 0 | N57: =[1]主表!$E55 -> 397 | O57: 11 | P57: 2 | Q57: 6 | R57: 2
A58: 54 | B58: 54 | C58: 2 | D58: 6 | E58: 4 | F58: 金丹期 | G58: 后 | H58: 4 | I58: =[1]主表!$F56*20 -> 95.9104 | J58: =[1]主表!$H56 -> 4.064 | K58: =[1]主表!$G56 -> 4.064 | L58: 1 | M58: =[1]主表!$I56 -> 0 | N58: =[1]主表!$E56 -> 406 | O58: 11 | P58: 2 | Q58: 6 | R58: 2
A59: 55 | B59: 55 | C59: 2 | D59: 6 | E59: 5 | F59: 金丹期 | G59: 后 | H59: 5 | I59: =[1]主表!$F57*20 -> 98.3705 | J59: =[1]主表!$H57 -> 4.1565 | K59: =[1]主表!$G57 -> 4.1565 | L59: 1 | M59: =[1]主表!$I57 -> 0 | N59: =[1]主表!$E57 -> 416 | O59: 11 | P59: 2 | Q59: 6 | R59: 2
A60: 56 | B60: 56 | C60: 2 | D60: 6 | E60: 6 | F60: 金丹期 | G60: 后 | H60: 6 | I60: =[1]主表!$F58*20 -> 100.2496 | J60: =[1]主表!$H58 -> 4.224 | K60: =[1]主表!$G58 -> 4.224 | L60: 1 | M60: =[1]主表!$I58 -> 0 | N60: =[1]主表!$E58 -> 422 | O60: 12 | P60: 2 | Q60: 6 | R60: 2
A61: 57 | B61: 57 | C61: 2 | D61: 6 | E61: 7 | F61: 金丹期 | G61: 后 | H61: 7 | I61: =[1]主表!$F59*20 -> 102.75888 | J61: =[1]主表!$H59 -> 4.3176 | K61: =[1]主表!$G59 -> 4.3176 | L61: 1 | M61: =[1]主表!$I59 -> 0 | N61: =[1]主表!$E59 -> 432 | O61: 12 | P61: 2 | Q61: 6 | R61: 2
A62: 58 | B62: 58 | C62: 2 | D62: 6 | E62: 8 | F62: 金丹期 | G62: 后 | H62: 8 | I62: =[1]主表!$F60*20 -> 105.29496 | J62: =[1]主表!$H60 -> 4.4118 | K62: =[1]主表!$G60 -> 4.4118 | L62: 1 | M62: =[1]主表!$I60 -> 0 | N62: =[1]主表!$E60 -> 441 | O62: 12 | P62: 2 | Q62: 6 | R62: 2
A63: 59 | B63: 59 | C63: 2 | D63: 6 | E63: 9 | F63: 金丹期 | G63: 后 | H63: 9 | I63: =[1]主表!$F61*20 -> 107.85796 | J63: =[1]主表!$H61 -> 4.5066 | K63: =[1]主表!$G61 -> 4.5066 | L63: 1 | M63: =[1]主表!$I61 -> 0 | N63: =[1]主表!$E61 -> 451 | O63: 12 | P63: 2 | Q63: 6 | R63: 2
A64: 60 | B64: 60 | C64: 2 | D64: 6 | E64: 10 | F64: 金丹期 | G64: 后 | H64: 10 | I64: =[1]主表!$F62*20 -> 122.304 | J64: =[1]主表!$H62 -> 5.096 | K64: =[1]主表!$G62 -> 5.096 | L64: 1 | M64: =[1]主表!$I62 -> 0 | N64: =[1]主表!$E62 -> 510 | O64: 12 | P64: 2 | Q64: 6 | R64: 2
A65: 61 | B65: 61 | C65: 3 | D65: 7 | E65: 1 | F65: 元婴期 | G65: 前 | H65: 1 | I65: =[1]主表!$F63*20 -> 125.628 | J65: =[1]主表!$H63 -> 5.22 | K65: =[1]主表!$G63 -> 5.22 | L65: 1 | M65: =[1]主表!$I63 -> 0 | N65: =[1]主表!$E63 -> 522 | O65: 13 | P65: 3 | Q65: 7 | R65: 3
A66: 62 | B66: 62 | C66: 3 | D66: 7 | E66: 2 | F66: 元婴期 | G66: 前 | H66: 2 | I66: =[1]主表!$F64*20 -> 128.3555467 | J66: =[1]主表!$H64 -> 5.3186 | K66: =[1]主表!$G64 -> 5.3186 | L66: 1 | M66: =[1]主表!$I64 -> 0 | N66: =[1]主表!$E64 -> 532 | O66: 13 | P66: 3 | Q66: 7 | R66: 3
A67: 63 | B67: 63 | C67: 3 | D67: 7 | E67: 3 | F67: 元婴期 | G67: 前 | H67: 3 | I67: =[1]主表!$F65*20 -> 131.11076 | J67: =[1]主表!$H65 -> 5.4178 | K67: =[1]主表!$G65 -> 5.4178 | L67: 1 | M67: =[1]主表!$I65 -> 0 | N67: =[1]主表!$E65 -> 542 | O67: 13 | P67: 3 | Q67: 7 | R67: 3
A68: 64 | B68: 64 | C68: 3 | D68: 7 | E68: 4 | F68: 元婴期 | G68: 前 | H68: 4 | I68: =[1]主表!$F66*20 -> 134.5344 | J68: =[1]主表!$H66 -> 5.544 | K68: =[1]主表!$G66 -> 5.544 | L68: 1 | M68: =[1]主表!$I66 -> 0 | N68: =[1]主表!$E66 -> 554 | O68: 13 | P68: 3 | Q68: 7 | R68: 3
A69: 65 | B69: 65 | C69: 3 | D69: 7 | E69: 5 | F69: 元婴期 | G69: 前 | H69: 5 | I69: =[1]主表!$F67*20 -> 137.3495 | J69: =[1]主表!$H67 -> 5.6445 | K69: =[1]主表!$G67 -> 5.6445 | L69: 1 | M69: =[1]主表!$I67 -> 0 | N69: =[1]主表!$E67 -> 564 | O69: 13 | P69: 3 | Q69: 7 | R69: 3
A70: 66 | B70: 66 | C70: 3 | D70: 7 | E70: =H70 -> 6 | F70: 元婴期 | G70: 前 | H70: 6 | I70: =[1]主表!$F68*20 -> 140.84168 | J70: =[1]主表!$H68 -> 5.7722 | K70: =[1]主表!$G68 -> 5.7722 | L70: 1 | M70: =[1]主表!$I68 -> 0 | N70: =[1]主表!$E68 -> 577 | O70: 14 | P70: 3 | Q70: 7 | R70: 3
A71: 67 | B71: 67 | C71: 3 | D71: 7 | E71: 7 | F71: 元婴期 | G71: 前 | H71: 7 | I71: =[1]主表!$F69*20 -> 143.7172 | J71: =[1]主表!$H69 -> 5.874 | K71: =[1]主表!$G69 -> 5.874 | L71: 1 | M71: =[1]主表!$I69 -> 0 | N71: =[1]主表!$E69 -> 587 | O71: 14 | P71: 3 | Q71: 7 | R71: 3
A72: 68 | B72: 68 | C72: 3 | D72: 7 | E72: 8 | F72: 元婴期 | G72: 前 | H72: 8 | I72: =[1]主表!$F70*20 -> 147.2785067 | J72: =[1]主表!$H70 -> 6.0032 | K72: =[1]主表!$G70 -> 6.0032 | L72: 1 | M72: =[1]主表!$I70 -> 0 | N72: =[1]主表!$E70 -> 600 | O72: 14 | P72: 3 | Q72: 7 | R72: 3
A73: 69 | B73: 69 | C73: 3 | D73: 7 | E73: 9 | F73: 元婴期 | G73: 前 | H73: 9 | I73: =[1]主表!$F71*20 -> 150.87672 | J73: =[1]主表!$H71 -> 6.1332 | K73: =[1]主表!$G71 -> 6.1332 | L73: 1 | M73: =[1]主表!$I71 -> 0 | N73: =[1]主表!$E71 -> 613 | O73: 14 | P73: 3 | Q73: 7 | R73: 3
A74: 70 | B74: 70 | C74: 3 | D74: 7 | E74: 10 | F74: 元婴期 | G74: 前 | H74: 10 | I74: =[1]主表!$F72*20 -> 161.838 | J74: =[1]主表!$H72 -> 6.561 | K74: =[1]主表!$G72 -> 6.561 | L74: 1 | M74: =[1]主表!$I72 -> 0 | N74: =[1]主表!$E72 -> 656 | O74: 14 | P74: 3 | Q74: 7 | R74: 3
A75: 71 | B75: 71 | C75: 3 | D75: 8 | E75: 1 | F75: 元婴期 | G75: 中 | H75: 1 | I75: =[1]主表!$F73*20 -> 165.5575133 | J75: =[1]主表!$H73 -> 6.6937 | K75: =[1]主表!$G73 -> 6.6937 | L75: 1 | M75: =[1]主表!$I73 -> 0 | N75: =[1]主表!$E73 -> 669 | O75: 15 | P75: 3 | Q75: 8 | R75: 3
A76: 72 | B76: 72 | C76: 3 | D76: 8 | E76: 2 | F76: 元婴期 | G76: 中 | H76: 2 | I76: =[1]主表!$F74*20 -> 169.31456 | J76: =[1]主表!$H74 -> 6.8272 | K76: =[1]主表!$G74 -> 6.8272 | L76: 1 | M76: =[1]主表!$I74 -> 0 | N76: =[1]主表!$E74 -> 683 | O76: 15 | P76: 3 | Q76: 8 | R76: 3
A77: 73 | B77: 73 | C77: 3 | D77: 8 | E77: 3 | F77: 元婴期 | G77: 中 | H77: 3 | I77: =[1]主表!$F75*20 -> 173.1093 | J77: =[1]主表!$H75 -> 6.9615 | K77: =[1]主表!$G75 -> 6.9615 | L77: 1 | M77: =[1]主表!$I75 -> 0 | N77: =[1]主表!$E75 -> 696 | O77: 15 | P77: 3 | Q77: 8 | R77: 3
A78: 74 | B78: 74 | C78: 3 | D78: 8 | E78: 4 | F78: 元婴期 | G78: 中 | H78: 4 | I78: =[1]主表!$F76*20 -> 176.9418933 | J78: =[1]主表!$H76 -> 7.0966 | K78: =[1]主表!$G76 -> 7.0966 | L78: 1 | M78: =[1]主表!$I76 -> 0 | N78: =[1]主表!$E76 -> 710 | O78: 15 | P78: 3 | Q78: 8 | R78: 3
A79: 75 | B79: 75 | C79: 3 | D79: 8 | E79: 5 | F79: 元婴期 | G79: 中 | H79: 5 | I79: =[1]主表!$F77*20 -> 180.8125 | J79: =[1]主表!$H77 -> 7.2325 | K79: =[1]主表!$G77 -> 7.2325 | L79: 1 | M79: =[1]主表!$I77 -> 0 | N79: =[1]主表!$E77 -> 723 | O79: 15 | P79: 3 | Q79: 8 | R79: 3
A80: 76 | B80: 76 | C80: 3 | D80: 8 | E80: 6 | F80: 元婴期 | G80: 中 | H80: 6 | I80: =[1]主表!$F78*20 -> 185.41312 | J80: =[1]主表!$H78 -> 7.3968 | K80: =[1]主表!$G78 -> 7.3968 | L80: 1 | M80: =[1]主表!$I78 -> 0 | N80: =[1]主表!$E78 -> 740 | O80: 16 | P80: 3 | Q80: =Q70+1 -> 8 | R80: 3
A81: 77 | B81: 77 | C81: 3 | D81: 8 | E81: 7 | F81: 元婴期 | G81: 中 | H81: 7 | I81: =[1]主表!$F79*20 -> 189.3645867 | J81: =[1]主表!$H79 -> 7.5344 | K81: =[1]主表!$G79 -> 7.5344 | L81: 1 | M81: =[1]主表!$I79 -> 0 | N81: =[1]主表!$E79 -> 753 | O81: 16 | P81: 3 | Q81: 8 | R81: 3
A82: 78 | B82: 78 | C82: 3 | D82: 8 | E82: 8 | F82: 元婴期 | G82: 中 | H82: 8 | I82: =[1]主表!$F80*20 -> 193.35456 | J82: =[1]主表!$H80 -> 7.6728 | K82: =[1]主表!$G80 -> 7.6728 | L82: 1 | M82: =[1]主表!$I80 -> 0 | N82: =[1]主表!$E80 -> 767 | O82: 16 | P82: 3 | Q82: 8 | R82: 3
A83: 79 | B83: 79 | C83: 3 | D83: 8 | E83: 9 | F83: 元婴期 | G83: 中 | H83: 9 | I83: =[1]主表!$F81*20 -> 198.08814 | J83: =[1]主表!$H81 -> 7.8399 | K83: =[1]主表!$G81 -> 7.8399 | L83: 1 | M83: =[1]主表!$I81 -> 0 | N83: =[1]主表!$E81 -> 784 | O83: 16 | P83: 3 | Q83: 8 | R83: 3
A84: 80 | B84: 80 | C84: 3 | D84: 8 | E84: 10 | F84: 元婴期 | G84: 中 | H84: 10 | I84: =[1]主表!$F82*20 -> 212.8 | J84: =[1]主表!$H82 -> 8.4 | K84: =[1]主表!$G82 -> 8.4 | L84: 1 | M84: =[1]主表!$I82 -> 0 | N84: =[1]主表!$E82 -> 840 | O84: 16 | P84: 3 | Q84: 8 | R84: 3
A85: 81 | B85: 81 | C85: 3 | D85: 9 | E85: 1 | F85: 元婴期 | G85: 后 | H85: 1 | I85: =[1]主表!$F83*20 -> 216.97696 | J85: =[1]主表!$H83 -> 8.5424 | K85: =[1]主表!$G83 -> 8.5424 | L85: 1 | M85: =[1]主表!$I83 -> 0 | N85: =[1]主表!$E83 -> 854 | O85: 17 | P85: 3 | Q85: 9 | R85: 3
A86: 82 | B86: 82 | C86: 3 | D86: 9 | E86: 2 | F86: 元婴期 | G86: 后 | H86: 2 | I86: =[1]主表!$F84*20 -> 221.91144 | J86: =[1]主表!$H84 -> 8.7138 | K86: =[1]主表!$G84 -> 8.7138 | L86: 1 | M86: =[1]主表!$I84 -> 0 | N86: =[1]主表!$E84 -> 871 | O86: 17 | P86: 3 | Q86: 9 | R86: 3
A87: 83 | B87: 83 | C87: 3 | D87: 9 | E87: 3 | F87: 元婴期 | G87: 后 | H87: 3 | I87: =[1]主表!$F85*20 -> 227.6169 | J87: =[1]主表!$H85 -> 8.9145 | K87: =[1]主表!$G85 -> 8.9145 | L87: 1 | M87: =[1]主表!$I85 -> 0 | N87: =[1]主表!$E85 -> 891 | O87: 17 | P87: 3 | Q87: 9 | R87: 3
A88: 84 | B88: 84 | C88: 3 | D88: 9 | E88: 4 | F88: 元婴期 | G88: 后 | H88: 4 | I88: =[1]主表!$F86*20 -> 232.6528 | J88: =[1]主表!$H86 -> 9.088 | K88: =[1]主表!$G86 -> 9.088 | L88: 1 | M88: =[1]主表!$I86 -> 0 | N88: =[1]主表!$E86 -> 909 | O88: 17 | P88: 3 | Q88: 9 | R88: 3
A89: 85 | B89: 85 | C89: 3 | D89: 9 | E89: 5 | F89: 元婴期 | G89: 后 | H89: 5 | I89: =[1]主表!$F87*20 -> 237.7375 | J89: =[1]主表!$H87 -> 9.2625 | K89: =[1]主表!$G87 -> 9.2625 | L89: 1 | M89: =[1]主表!$I87 -> 0 | N89: =[1]主表!$E87 -> 926 | O89: 17 | P89: 3 | Q89: 9 | R89: 3
A90: 86 | B90: 86 | C90: 3 | D90: 9 | E90: 6 | F90: 元婴期 | G90: 后 | H90: 6 | I90: =[1]主表!$F88*20 -> 242.8712 | J90: =[1]主表!$H88 -> 9.438 | K90: =[1]主表!$G88 -> 9.438 | L90: 1 | M90: =[1]主表!$I88 -> 0 | N90: =[1]主表!$E88 -> 944 | O90: 18 | P90: 3 | Q90: 9 | R90: 3
A91: 87 | B91: 87 | C91: 3 | D91: 9 | E91: 7 | F91: 元婴期 | G91: 后 | H91: 7 | I91: =[1]主表!$F89*20 -> 248.79456 | J91: =[1]主表!$H89 -> 9.6432 | K91: =[1]主表!$G89 -> 9.6432 | L91: 1 | M91: =[1]主表!$I89 -> 0 | N91: =[1]主表!$E89 -> 964 | O91: 18 | P91: 3 | Q91: 9 | R91: 3
A92: 88 | B92: 88 | C92: 3 | D92: 9 | E92: 8 | F92: 元婴期 | G92: 后 | H92: 8 | I92: =[1]主表!$F90*20 -> 254.03136 | J92: =[1]主表!$H90 -> 9.8208 | K92: =[1]主表!$G90 -> 9.8208 | L92: 1 | M92: =[1]主表!$I90 -> 0 | N92: =[1]主表!$E90 -> 982 | O92: 18 | P92: 3 | Q92: 9 | R92: 3
A93: 89 | B93: 89 | C93: 3 | D93: 9 | E93: 9 | F93: 元婴期 | G93: 后 | H93: 9 | I93: =[1]主表!$F91*20 -> 260.0672467 | J93: =[1]主表!$H91 -> 10.0283 | K93: =[1]主表!$G91 -> 10.0283 | L93: 1 | M93: =[1]主表!$I91 -> 0 | N93: =[1]主表!$E91 -> 1003 | O93: 18 | P93: 3 | Q93: 9 | R93: 3
A94: 90 | B94: 90 | C94: 3 | D94: 9 | E94: 10 | F94: 元婴期 | G94: 后 | H94: 10 | I94: =[1]主表!$F92*20 -> 296.322 | J94: =[1]主表!$H92 -> 11.397 | K94: =[1]主表!$G92 -> 11.397 | L94: 1 | M94: =[1]主表!$I92 -> 0 | N94: =[1]主表!$E92 -> 1140 | O94: 18 | P94: 3 | Q94: 9 | R94: 3
A95: 91 | B95: 91 | C95: 4 | D95: 10 | E95: 1 | F95: 化神期 | G95: 前 | H95: 1 | I95: =[1]主表!$F93*20 -> 302.65746 | J95: =[1]主表!$H93 -> 11.6109 | K95: =[1]主表!$G93 -> 11.6109 | L95: 1 | M95: =[1]主表!$I93 -> 0 | N95: =[1]主表!$E93 -> 1161 | O95: 19 | P95: 4 | Q95: 10 | R95: 4
A96: 92 | B96: 92 | C96: 4 | D96: 10 | E96: 2 | F96: 化神期 | G96: 前 | H96: 2 | I96: =[1]主表!$F94*20 -> 309.8158933 | J96: =[1]主表!$H94 -> 11.8552 | K96: =[1]主表!$G94 -> 11.8552 | L96: 1 | M96: =[1]主表!$I94 -> 0 | N96: =[1]主表!$E94 -> 1186 | O96: 19 | P96: 4 | Q96: 10 | R96: 4
A97: 93 | B97: 93 | C97: 4 | D97: 10 | E97: 3 | F97: 化神期 | G97: 前 | H97: 3 | I97: =[1]主表!$F95*20 -> 316.27592 | J97: =[1]主表!$H95 -> 12.0716 | K97: =[1]主表!$G95 -> 12.0716 | L97: 1 | M97: =[1]主表!$I95 -> 0 | N97: =[1]主表!$E95 -> 1207 | O97: 19 | P97: 4 | Q97: 10 | R97: 4
A98: 94 | B98: 94 | C98: 4 | D98: 10 | E98: 4 | F98: 化神期 | G98: 前 | H98: 4 | I98: =[1]主表!$F96*20 -> 323.56856 | J98: =[1]主表!$H96 -> 12.3186 | K98: =[1]主表!$G96 -> 12.3186 | L98: 1 | M98: =[1]主表!$I96 -> 0 | N98: =[1]主表!$E96 -> 1232 | O98: 19 | P98: 4 | Q98: 10 | R98: 4
A99: 95 | B99: 95 | C99: 4 | D99: 10 | E99: 5 | F99: 化神期 | G99: 前 | H99: 5 | I99: =[1]主表!$F97*20 -> 330.931 | J99: =[1]主表!$H97 -> 12.567 | K99: =[1]主表!$G97 -> 12.567 | L99: 1 | M99: =[1]主表!$I97 -> 0 | N99: =[1]主表!$E97 -> 1257 | O99: 19 | P99: 4 | Q99: 10 | R99: 4
A100: 96 | B100: 96 | C100: 4 | D100: 10 | E100: 6 | F100: 化神期 | G100: 前 | H100: 6 | I100: =[1]主表!$F98*20 -> 338.36352 | J100: =[1]主表!$H98 -> 12.8168 | K100: =[1]主表!$G98 -> 12.8168 | L100: 1 | M100: =[1]主表!$I98 -> 0 | N100: =[1]主表!$E98 -> 1282 | O100: 20 | P100: 4 | Q100: 10 | R100: 4
A101: 97 | B101: 97 | C101: 4 | D101: 10 | E101: 7 | F101: 化神期 | G101: 前 | H101: 7 | I101: =[1]主表!$F99*20 -> 345.8664 | J101: =[1]主表!$H99 -> 13.068 | K101: =[1]主表!$G99 -> 13.068 | L101: 1 | M101: =[1]主表!$I99 -> 0 | N101: =[1]主表!$E99 -> 1307 | O101: 20 | P101: 4 | Q101: 10 | R101: 4
A102: 98 | B102: 98 | C102: 4 | D102: 10 | E102: 8 | F102: 化神期 | G102: 前 | H102: 8 | I102: =[1]主表!$F100*20 -> 353.43992 | J102: =[1]主表!$H100 -> 13.3206 | K102: =[1]主表!$G100 -> 13.3206 | L102: 1 | M102: =[1]主表!$I100 -> 0 | N102: =[1]主表!$E100 -> 1332 | O102: 20 | P102: 4 | Q102: 10 | R102: 4
A103: 99 | B103: 99 | C103: 4 | D103: 10 | E103: 9 | F103: 化神期 | G103: 前 | H103: 9 | I103: =[1]主表!$F101*20 -> 361.8797 | J103: =[1]主表!$H101 -> 13.6045 | K103: =[1]主表!$G101 -> 13.6045 | L103: 1 | M103: =[1]主表!$I101 -> 0 | N103: =[1]主表!$E101 -> 1360 | O103: 20 | P103: 4 | Q103: 10 | R103: 4
A104: 100 | B104: 100 | C104: 4 | D104: 10 | E104: 10 | F104: 化神期 | G104: 前 | H104: 10 | I104: =[1]主表!$F102*20 -> 388 | J104: =[1]主表!$H102 -> 14.55 | K104: =[1]主表!$G102 -> 14.55 | L104: 1 | M104: =[1]主表!$I102 -> 0 | N104: =[1]主表!$E102 -> 1455 | O104: 20 | P104: 4 | Q104: 10 | R104: 4
A105: 101 | B105: 101 | C105: 4 | D105: 11 | E105: 1 | F105: 化神期 | G105: 中 | H105: 1 | I105: =[1]主表!$F103*20 -> 396.7039533 | J105: =[1]主表!$H103 -> 14.8393 | K105: =[1]主表!$G103 -> 14.8393 | L105: 1 | M105: =[1]主表!$I103 -> 0 | N105: =[1]主表!$E103 -> 1484 | O105: 21 | P105: 4 | Q105: 11 | R105: 4
A106: 102 | B106: 102 | C106: 4 | D106: 11 | E106: 2 | F106: 化神期 | G106: 中 | H106: 2 | I106: =[1]主表!$F104*20 -> 405.48936 | J106: =[1]主表!$H104 -> 15.1302 | K106: =[1]主表!$G104 -> 15.1302 | L106: 1 | M106: =[1]主表!$I104 -> 0 | N106: =[1]主表!$E104 -> 1513 | O106: 21 | P106: 4 | Q106: 11 | R106: 4
A107: 103 | B107: 103 | C107: 4 | D107: 11 | E107: 3 | F107: 化神期 | G107: 中 | H107: 3 | I107: =[1]主表!$F105*20 -> 414.35654 | J107: =[1]主表!$H105 -> 15.4227 | K107: =[1]主表!$G105 -> 15.4227 | L107: 1 | M107: =[1]主表!$I105 -> 0 | N107: =[1]主表!$E105 -> 1542 | O107: 21 | P107: 4 | Q107: 11 | R107: 4
A108: 104 | B108: 104 | C108: 4 | D108: 11 | E108: 4 | F108: 化神期 | G108: 中 | H108: 4 | I108: =[1]主表!$F106*20 -> 424.1245867 | J108: =[1]主表!$H106 -> 15.7472 | K108: =[1]主表!$G106 -> 15.7472 | L108: 1 | M108: =[1]主表!$I106 -> 0 | N108: =[1]主表!$E106 -> 1575 | O108: 21 | P108: 4 | Q108: 11 | R108: 4
A109: 105 | B109: 105 | C109: 4 | D109: 11 | E109: 5 | F109: 化神期 | G109: 中 | H109: 5 | I109: =[1]主表!$F107*20 -> 433.161 | J109: =[1]主表!$H107 -> 16.043 | K109: =[1]主表!$G107 -> 16.043 | L109: 1 | M109: =[1]主表!$I107 -> 0 | N109: =[1]主表!$E107 -> 1604 | O109: 21 | P109: 4 | Q109: 11 | R109: 4
A110: 106 | B110: 106 | C110: 4 | D110: 11 | E110: 6 | F110: 化神期 | G110: 中 | H110: 6 | I110: =[1]主表!$F108*20 -> 443.1084 | J110: =[1]主表!$H108 -> 16.371 | K110: =[1]主表!$G108 -> 16.371 | L110: 1 | M110: =[1]主表!$I108 -> 0 | N110: =[1]主表!$E108 -> 1637 | O110: 22 | P110: 4 | Q110: 11 | R110: 4
A111: 107 | B111: 107 | C111: 4 | D111: 11 | E111: 7 | F111: 化神期 | G111: 中 | H111: 7 | I111: =[1]主表!$F109*20 -> 453.1483733 | J111: =[1]主表!$H109 -> 16.7008 | K111: =[1]主表!$G109 -> 16.7008 | L111: 1 | M111: =[1]主表!$I109 -> 0 | N111: =[1]主表!$E109 -> 1670 | O111: 22 | P111: 4 | Q111: 11 | R111: 4
A112: 108 | B112: 108 | C112: 4 | D112: 11 | E112: 8 | F112: 化神期 | G112: 中 | H112: 8 | I112: =[1]主表!$F110*20 -> 462.44352 | J112: =[1]主表!$H110 -> 17.0016 | K112: =[1]主表!$G110 -> 17.0016 | L112: 1 | M112: =[1]主表!$I110 -> 0 | N112: =[1]主表!$E110 -> 1700 | O112: 22 | P112: 4 | Q112: 11 | R112: 4
A113: 109 | B113: 109 | C113: 4 | D113: 11 | E113: 9 | F113: 化神期 | G113: 中 | H113: 9 | I113: =[1]主表!$F111*20 -> 473.50748 | J113: =[1]主表!$H111 -> 17.3658 | K113: =[1]主表!$G111 -> 17.3658 | L113: 1 | M113: =[1]主表!$I111 -> 0 | N113: =[1]主表!$E111 -> 1737 | O113: 22 | P113: 4 | Q113: 11 | R113: 4
A114: 110 | B114: 110 | C114: 4 | D114: 11 | E114: 10 | F114: 化神期 | G114: 中 | H114: 10 | I114: =[1]主表!$F112*20 -> 507.5526667 | J114: =[1]主表!$H112 -> 18.569 | K114: =[1]主表!$G112 -> 18.569 | L114: 1 | M114: =[1]主表!$I112 -> 0 | N114: =[1]主表!$E112 -> 1857 | O114: 22 | P114: 4 | Q114: 11 | R114: 4
A115: 111 | B115: 111 | C115: 4 | D115: 12 | E115: 1 | F115: 化神期 | G115: 后 | H115: 1 | I115: =[1]主表!$F113*20 -> 518.10112 | J115: =[1]主表!$H113 -> 18.9088 | K115: =[1]主表!$G113 -> 18.9088 | L115: 1 | M115: =[1]主表!$I113 -> 0 | N115: =[1]主表!$E113 -> 1891 | O115: 23 | P115: 4 | Q115: 12 | R115: 4
A116: 112 | B116: 112 | C116: 4 | D116: 12 | E116: 2 | F116: 化神期 | G116: 后 | H116: 2 | I116: =[1]主表!$F114*20 -> 529.60128 | J116: =[1]主表!$H114 -> 19.2816 | K116: =[1]主表!$G114 -> 19.2816 | L116: 1 | M116: =[1]主表!$I114 -> 0 | N116: =[1]主表!$E114 -> 1928 | O116: 23 | P116: 4 | Q116: 12 | R116: 4
A117: 113 | B117: 113 | C117: 4 | D117: 12 | E117: 3 | F117: 化神期 | G117: 后 | H117: 3 | I117: =[1]主表!$F115*20 -> 542.0680067 | J117: =[1]主表!$H115 -> 19.6877 | K117: =[1]主表!$G115 -> 19.6877 | L117: 1 | M117: =[1]主表!$I115 -> 0 | N117: =[1]主表!$E115 -> 1969 | O117: 23 | P117: 4 | Q117: 12 | R117: 4
A118: 114 | B118: 114 | C118: 4 | D118: 12 | E118: 4 | F118: 化神期 | G118: 后 | H118: 4 | I118: =[1]主表!$F116*20 -> 553.78296 | J118: =[1]主表!$H116 -> 20.0646 | K118: =[1]主表!$G116 -> 20.0646 | L118: 1 | M118: =[1]主表!$I116 -> 0 | N118: =[1]主表!$E116 -> 2006 | O118: 23 | P118: 4 | Q118: 12 | R118: 4
A119: 115 | B119: 115 | C119: 4 | D119: 12 | E119: 5 | F119: 化神期 | G119: 后 | H119: 5 | I119: =[1]主表!$F117*20 -> 566.475 | J119: =[1]主表!$H117 -> 20.475 | K119: =[1]主表!$G117 -> 20.475 | L119: 1 | M119: =[1]主表!$I117 -> 0 | N119: =[1]主表!$E117 -> 2048 | O119: 23 | P119: 4 | Q119: 12 | R119: 4
A120: 116 | B120: 116 | C120: 4 | D120: 12 | E120: 6 | F120: 化神期 | G120: 后 | H120: 6 | I120: =[1]主表!$F118*20 -> 578.4064 | J120: =[1]主表!$H118 -> 20.856 | K120: =[1]主表!$G118 -> 20.856 | L120: 1 | M120: =[1]主表!$I118 -> 0 | N120: =[1]主表!$E118 -> 2086 | O120: 24 | P120: 4 | Q120: 12 | R120: 4
A121: 117 | B121: 117 | C121: 4 | D121: 12 | E121: 7 | F121: 化神期 | G121: 后 | H121: 7 | I121: =[1]主表!$F119*20 -> 591.32546 | J121: =[1]主表!$H119 -> 21.2707 | K121: =[1]主表!$G119 -> 21.2707 | L121: 1 | M121: =[1]主表!$I119 -> 0 | N121: =[1]主表!$E119 -> 2127 | O121: 24 | P121: 4 | Q121: 12 | R121: 4
A122: 118 | B122: 118 | C122: 4 | D122: 12 | E122: 8 | F122: 化神期 | G122: 后 | H122: 8 | I122: =[1]主表!$F120*20 -> 604.36112 | J122: =[1]主表!$H120 -> 21.6876 | K122: =[1]主表!$G120 -> 21.6876 | L122: 1 | M122: =[1]主表!$I120 -> 0 | N122: =[1]主表!$E120 -> 2169 | O122: 24 | P122: 4 | Q122: 12 | R122: 4
A123: 119 | B123: 119 | C123: 4 | D123: 12 | E123: 9 | F123: 化神期 | G123: 后 | H123: 9 | I123: =[1]主表!$F121*20 -> 617.51382 | J123: =[1]主表!$H121 -> 22.1067 | K123: =[1]主表!$G121 -> 22.1067 | L123: 1 | M123: =[1]主表!$I121 -> 0 | N123: =[1]主表!$E121 -> 2211 | O123: 24 | P123: 4 | Q123: 12 | R123: 4
A124: 120 | B124: 120 | C124: 4 | D124: 12 | E124: 10 | F124: 化神期 | G124: 后 | H124: 10 | I124: =[1]主表!$F122*20 -> 703.36 | J124: =[1]主表!$H122 -> 25.12 | K124: =[1]主表!$G122 -> 25.12 | L124: 1 | M124: =[1]主表!$I122 -> 0 | N124: =[1]主表!$E122 -> 2512 | O124: 24 | P124: 4 | Q124: 12 | R124: 4
A125: 121 | B125: 121 | C125: 5 | D125: 13 | E125: 1 | F125: 炼虚期 | G125: 前 | H125: 1 | I125: =[1]主表!$F123*20 -> 718.95012 | J125: =[1]主表!$H123 -> 25.6158 | K125: =[1]主表!$G123 -> 25.6158 | L125: 1 | M125: =[1]主表!$I123 -> 0 | N125: =[1]主表!$E123 -> 2562 | O125: 25 | P125: 5 | Q125: 13 | R125: 5
A126: 122 | B126: 122 | C126: 5 | D126: 13 | E126: 2 | F126: 炼虚期 | G126: 前 | H126: 2 | I126: =[1]主表!$F124*20 -> 734.6794933 | J126: =[1]主表!$H124 -> 26.1142 | K126: =[1]主表!$G124 -> 26.1142 | L126: 1 | M126: =[1]主表!$I124 -> 0 | N126: =[1]主表!$E124 -> 2611 | O126: 25 | P126: 5 | Q126: 13 | R126: 5
A127: 123 | B127: 123 | C127: 5 | D127: 13 | E127: 3 | F127: 炼虚期 | G127: 前 | H127: 3 | I127: =[1]主表!$F125*20 -> 750.54864 | J127: =[1]主表!$H125 -> 26.6152 | K127: =[1]主表!$G125 -> 26.6152 | L127: 1 | M127: =[1]主表!$I125 -> 0 | N127: =[1]主表!$E125 -> 2662 | O127: 25 | P127: 5 | Q127: 13 | R127: 5
A128: 124 | B128: 124 | C128: 5 | D128: 13 | E128: 4 | F128: 炼虚期 | G128: 前 | H128: 4 | I128: =[1]主表!$F126*20 -> 767.47392 | J128: =[1]主表!$H126 -> 27.1512 | K128: =[1]主表!$G126 -> 27.1512 | L128: 1 | M128: =[1]主表!$I126 -> 0 | N128: =[1]主表!$E126 -> 2715 | O128: 25 | P128: 5 | Q128: 13 | R128: 5
A129: 125 | B129: 125 | C129: 5 | D129: 13 | E129: 5 | F129: 炼虚期 | G129: 前 | H129: 5 | I129: =[1]主表!$F127*20 -> 783.6291667 | J129: =[1]主表!$H127 -> 27.6575 | K129: =[1]主表!$G127 -> 27.6575 | L129: 1 | M129: =[1]主表!$I127 -> 0 | N129: =[1]主表!$E127 -> 2766 | O129: 25 | P129: 5 | Q129: 13 | R129: 5
A130: 126 | B130: 126 | C130: 5 | D130: 13 | E130: 6 | F130: 炼虚期 | G130: 前 | H130: 6 | I130: =[1]主表!$F128*20 -> 801.77744 | J130: =[1]主表!$H128 -> 28.2316 | K130: =[1]主表!$G128 -> 28.2316 | L130: 1 | M130: =[1]主表!$I128 -> 0 | N130: =[1]主表!$E128 -> 2823 | O130: 26 | P130: 5 | Q130: 13 | R130: 5
A131: 127 | B131: 127 | C131: 5 | D131: 13 | E131: 7 | F131: 炼虚期 | G131: 前 | H131: 7 | I131: =[1]主表!$F129*20 -> 819.1568 | J131: =[1]主表!$H129 -> 28.776 | K131: =[1]主表!$G129 -> 28.776 | L131: 1 | M131: =[1]主表!$I129 -> 0 | N131: =[1]主表!$E129 -> 2878 | O131: 26 | P131: 5 | Q131: 13 | R131: 5
A132: 128 | B132: 128 | C132: 5 | D132: 13 | E132: 8 | F132: 炼虚期 | G132: 前 | H132: 8 | I132: =[1]主表!$F130*20 -> 836.68864 | J132: =[1]主表!$H130 -> 29.3232 | K132: =[1]主表!$G130 -> 29.3232 | L132: 1 | M132: =[1]主表!$I130 -> 0 | N132: =[1]主表!$E130 -> 2932 | O132: 26 | P132: 5 | Q132: 13 | R132: 5
A133: 129 | B133: 129 | C133: 5 | D133: 13 | E133: 9 | F133: 炼虚期 | G133: 前 | H133: 9 | I133: =[1]主表!$F131*20 -> 855.31446 | J133: =[1]主表!$H131 -> 29.9061 | K133: =[1]主表!$G131 -> 29.9061 | L133: 1 | M133: =[1]主表!$I131 -> 0 | N133: =[1]主表!$E131 -> 2991 | O133: 26 | P133: 5 | Q133: 13 | R133: 5
A134: 130 | B134: 130 | C134: 5 | D134: 13 | E134: =H134 -> 10 | F134: 炼虚期 | G134: 前 | H134: 10 | I134: =[1]主表!$F132*20 -> 916.674 | J134: =[1]主表!$H132 -> 31.977 | K134: =[1]主表!$G132 -> 31.977 | L134: 1 | M134: =[1]主表!$I132 -> 0 | N134: =[1]主表!$E132 -> 3198 | O134: 26 | P134: 5 | Q134: 13 | R134: 5
A135: 131 | B135: 131 | C135: 5 | D135: 14 | E135: 1 | F135: 炼虚期 | G135: 中 | H135: 1 | I135: =[1]主表!$F133*20 -> 936.8072333 | J135: =[1]主表!$H133 -> 32.6035 | K135: =[1]主表!$G133 -> 32.6035 | L135: 1 | M135: =[1]主表!$I133 -> 0 | N135: =[1]主表!$E133 -> 3260 | O135: 27 | P135: 5 | Q135: 14 | R135: 5
A136: 132 | B136: 132 | C136: 5 | D136: 14 | E136: 2 | F136: 炼虚期 | G136: 中 | H136: 2 | I136: =[1]主表!$F134*20 -> 957.11616 | J136: =[1]主表!$H134 -> 33.2332 | K136: =[1]主表!$G134 -> 33.2332 | L136: 1 | M136: =[1]主表!$I134 -> 0 | N136: =[1]主表!$E134 -> 3323 | O136: 27 | P136: 5 | Q136: 14 | R136: 5
A137: 133 | B137: 133 | C137: 5 | D137: 14 | E137: 3 | F137: 炼虚期 | G137: 中 | H137: 3 | I137: =[1]主表!$F135*20 -> 978.56268 | J137: =[1]主表!$H135 -> 33.8994 | K137: =[1]主表!$G135 -> 33.8994 | L137: 1 | M137: =[1]主表!$I135 -> 0 | N137: =[1]主表!$E135 -> 3390 | O137: 27 | P137: 5 | Q137: 14 | R137: 5
A138: 134 | B138: 134 | C138: 5 | D138: 14 | E138: 4 | F138: 炼虚期 | G138: 中 | H138: 4 | I138: =[1]主表!$F136*20 -> 999.2300267 | J138: =[1]主表!$H136 -> 34.5356 | K138: =[1]主表!$G136 -> 34.5356 | L138: 1 | M138: =[1]主表!$I136 -> 0 | N138: =[1]主表!$E136 -> 3454 | O138: 27 | P138: 5 | Q138: 14 | R138: 5
A139: 135 | B139: 135 | C139: 5 | D139: 14 | E139: 5 | F139: 炼虚期 | G139: 中 | H139: 5 | I139: =[1]主表!$F137*20 -> 1021.0465 | J139: =[1]主表!$H137 -> 35.2085 | K139: =[1]主表!$G137 -> 35.2085 | L139: 1 | M139: =[1]主表!$I137 -> 0 | N139: =[1]主表!$E137 -> 3521 | O139: 27 | P139: 5 | Q139: 14 | R139: 5
A140: 136 | B140: 136 | C140: 5 | D140: 14 | E140: 6 | F140: 炼虚期 | G140: 中 | H140: 6 | I140: =[1]主表!$F138*20 -> 1044.02816 | J140: =[1]主表!$H138 -> 35.9184 | K140: =[1]主表!$G138 -> 35.9184 | L140: 1 | M140: =[1]主表!$I138 -> 0 | N140: =[1]主表!$E138 -> 3592 | O140: 28 | P140: 5 | Q140: 14 | R140: 5
A141: 137 | B141: 137 | C141: 5 | D141: 14 | E141: 7 | F141: 炼虚期 | G141: 中 | H141: 7 | I141: =[1]主表!$F139*20 -> 1066.22756 | J141: =[1]主表!$H139 -> 36.5982 | K141: =[1]主表!$G139 -> 36.5982 | L141: 1 | M141: =[1]主表!$I139 -> 0 | N141: =[1]主表!$E139 -> 3660 | O141: 28 | P141: 5 | Q141: 14 | R141: 5
A142: 138 | B142: 138 | C142: 5 | D142: 14 | E142: 8 | F142: 炼虚期 | G142: 中 | H142: 8 | I142: =[1]主表!$F140*20 -> 1089.60384 | J142: =[1]主表!$H140 -> 37.3152 | K142: =[1]主表!$G140 -> 37.3152 | L142: 1 | M142: =[1]主表!$I140 -> 0 | N142: =[1]主表!$E140 -> 3732 | O142: 28 | P142: 5 | Q142: 14 | R142: 5
A143: 139 | B143: 139 | C143: 5 | D143: 14 | E143: 9 | F143: 炼虚期 | G143: 中 | H143: 9 | I143: =[1]主表!$F141*20 -> 1113.18108 | J143: =[1]主表!$H141 -> 38.0358 | K143: =[1]主表!$G141 -> 38.0358 | L143: 1 | M143: =[1]主表!$I141 -> 0 | N143: =[1]主表!$E141 -> 3804 | O143: 28 | P143: 5 | Q143: 14 | R143: 5
A144: 140 | B144: 140 | C144: 5 | D144: 14 | E144: 10 | F144: 炼虚期 | G144: 中 | H144: 10 | I144: =[1]主表!$F142*20 -> 1192.810667 | J144: =[1]主表!$H142 -> 40.664 | K144: =[1]主表!$G142 -> 40.664 | L144: 1 | M144: =[1]主表!$I142 -> 0 | N144: =[1]主表!$E142 -> 4066 | O144: 28 | P144: 5 | Q144: =Q134+1 -> 14 | R144: 5
A145: 141 | B145: 141 | C145: 5 | D145: 15 | E145: 1 | F145: 炼虚期 | G145: 后 | H145: 1 | I145: =[1]主表!$F143*20 -> 1219.08864 | J145: =[1]主表!$H143 -> 41.4656 | K145: =[1]主表!$G143 -> 41.4656 | L145: 1 | M145: =[1]主表!$I143 -> 0 | N145: =[1]主表!$E143 -> 4147 | O145: 29 | P145: 5 | Q145: 15 | R145: 5
A146: 142 | B146: 142 | C146: 5 | D146: 15 | E146: 2 | F146: 炼虚期 | G146: 后 | H146: 2 | I146: =[1]主表!$F144*20 -> 1245.59136 | J146: =[1]主表!$H144 -> 42.2712 | K146: =[1]主表!$G144 -> 42.2712 | L146: 1 | M146: =[1]主表!$I144 -> 0 | N146: =[1]主表!$E144 -> 4227 | O146: 29 | P146: 5 | Q146: 15 | R146: 5
A147: 143 | B147: 143 | C147: 5 | D147: 15 | E147: 3 | F147: 炼虚期 | G147: 后 | H147: 3 | I147: =[1]主表!$F145*20 -> 1272.319627 | J147: =[1]主表!$H145 -> 43.0808 | K147: =[1]主表!$G145 -> 43.0808 | L147: 1 | M147: =[1]主表!$I145 -> 0 | N147: =[1]主表!$E145 -> 4308 | O147: 29 | P147: 5 | Q147: 15 | R147: 5
A148: 144 | B148: 144 | C148: 5 | D148: 15 | E148: 4 | F148: 炼虚期 | G148: 后 | H148: 4 | I148: =[1]主表!$F146*20 -> 1300.29248 | J148: =[1]主表!$H146 -> 43.9288 | K148: =[1]主表!$G146 -> 43.9288 | L148: 1 | M148: =[1]主表!$I146 -> 0 | N148: =[1]主表!$E146 -> 4393 | O148: 29 | P148: 5 | Q148: 15 | R148: 5
A149: 145 | B149: 145 | C149: 5 | D149: 15 | E149: 5 | F149: 炼虚期 | G149: 后 | H149: 5 | I149: =[1]主表!$F147*20 -> 1328.503 | J149: =[1]主表!$H147 -> 44.781 | K149: =[1]主表!$G147 -> 44.781 | L149: 1 | M149: =[1]主表!$I147 -> 0 | N149: =[1]主表!$E147 -> 4478 | O149: 29 | P149: 5 | Q149: 15 | R149: 5
A150: 146 | B150: 146 | C150: 5 | D150: 15 | E150: 6 | F150: 炼虚期 | G150: 后 | H150: 6 | I150: =[1]主表!$F148*20 -> 1356.952027 | J150: =[1]主表!$H148 -> 45.6374 | K150: =[1]主表!$G148 -> 45.6374 | L150: 1 | M150: =[1]主表!$I148 -> 0 | N150: =[1]主表!$E148 -> 4564 | O150: 30 | P150: 5 | Q150: 15 | R150: 5
A151: 147 | B151: 147 | C151: 5 | D151: 15 | E151: 7 | F151: 炼虚期 | G151: 后 | H151: 7 | I151: =[1]主表!$F149*20 -> 1386.67446 | J151: =[1]主表!$H149 -> 46.5327 | K151: =[1]主表!$G149 -> 46.5327 | L151: 1 | M151: =[1]主表!$I149 -> 0 | N151: =[1]主表!$E149 -> 4653 | O151: 30 | P151: 5 | Q151: 15 | R151: 5
A152: 148 | B152: 148 | C152: 5 | D152: 15 | E152: 8 | F152: 炼虚期 | G152: 后 | H152: 8 | I152: =[1]主表!$F150*20 -> 1416.64768 | J152: =[1]主表!$H150 -> 47.4324 | K152: =[1]主表!$G150 -> 47.4324 | L152: 1 | M152: =[1]主表!$I150 -> 0 | N152: =[1]主表!$E150 -> 4743 | O152: 30 | P152: 5 | Q152: 15 | R152: 5
A153: 149 | B153: 149 | C153: 5 | D153: 15 | E153: 9 | F153: 炼虚期 | G153: 后 | H153: 9 | I153: =[1]主表!$F151*20 -> 1447.91724 | J153: =[1]主表!$H151 -> 48.3714 | K153: =[1]主表!$G151 -> 48.3714 | L153: 1 | M153: =[1]主表!$I151 -> 0 | N153: =[1]主表!$E151 -> 4837 | O153: 30 | P153: 5 | Q153: 15 | R153: 5
A154: 150 | B154: 150 | C154: 5 | D154: 15 | E154: 10 | F154: 炼虚期 | G154: 后 | H154: 10 | I154: =[1]主表!$F152*20 -> 1646.4 | J154: =[1]主表!$H152 -> 54.88 | K154: =[1]主表!$G152 -> 54.88 | L154: 1 | M154: =[1]主表!$I152 -> 0 | N154: =[1]主表!$E152 -> 5488 | O154: 30 | P154: 5 | Q154: 15 | R154: 5
A155: 151 | B155: 151 | C155: 6 | D155: 16 | E155: 1 | F155: 合体期 | G155: 前 | H155: 1 | I155: =[1]主表!$F153*20 -> 1682.21196 | J155: =[1]主表!$H153 -> 55.9494 | K155: =[1]主表!$G153 -> 55.9494 | L155: 1 | M155: =[1]主表!$I153 -> 0 | N155: =[1]主表!$E153 -> 5595 | O155: 31 | P155: 6 | Q155: 16 | R155: 6
A156: 152 | B156: 152 | C156: 6 | D156: 16 | E156: 2 | F156: 合体期 | G156: 前 | H156: 2 | I156: =[1]主表!$F154*20 -> 1718.3232 | J156: =[1]主表!$H154 -> 57.024 | K156: =[1]主表!$G154 -> 57.024 | L156: 1 | M156: =[1]主表!$I154 -> 0 | N156: =[1]主表!$E154 -> 5702 | O156: 31 | P156: 6 | Q156: 16 | R156: 6
A157: 153 | B157: 153 | C157: 6 | D157: 16 | E157: 3 | F157: 合体期 | G157: 前 | H157: 3 | I157: =[1]主表!$F155*20 -> 1755.80082 | J157: =[1]主表!$H155 -> 58.1391 | K157: =[1]主表!$G155 -> 58.1391 | L157: 1 | M157: =[1]主表!$I155 -> 0 | N157: =[1]主表!$E155 -> 5814 | O157: 31 | P157: 6 | Q157: 16 | R157: 6
A158: 154 | B158: 154 | C158: 6 | D158: 16 | E158: 4 | F158: 合体期 | G158: 前 | H158: 4 | I158: =[1]主表!$F156*20 -> 1793.59056 | J158: =[1]主表!$H156 -> 59.2596 | K158: =[1]主表!$G156 -> 59.2596 | L158: 1 | M158: =[1]主表!$I156 -> 0 | N158: =[1]主表!$E156 -> 5926 | O158: 31 | P158: 6 | Q158: 16 | R158: 6
A159: 155 | B159: 155 | C159: 6 | D159: 16 | E159: 5 | F159: 合体期 | G159: 前 | H159: 5 | I159: =[1]主表!$F157*20 -> 1832.770333 | J159: =[1]主表!$H157 -> 60.421 | K159: =[1]主表!$G157 -> 60.421 | L159: 1 | M159: =[1]主表!$I157 -> 0 | N159: =[1]主表!$E157 -> 6042 | O159: 31 | P159: 6 | Q159: 16 | R159: 6
A160: 156 | B160: 156 | C160: 6 | D160: 16 | E160: 6 | F160: 合体期 | G160: 前 | H160: 6 | I160: =[1]主表!$F158*20 -> 1872.2752 | J160: =[1]主表!$H158 -> 61.588 | K160: =[1]主表!$G158 -> 61.588 | L160: 1 | M160: =[1]主表!$I158 -> 0 | N160: =[1]主表!$E158 -> 6159 | O160: 32 | P160: 6 | Q160: 16 | R160: 6
A161: 157 | B161: 157 | C161: 6 | D161: 16 | E161: 7 | F161: 合体期 | G161: 前 | H161: 7 | I161: =[1]主表!$F159*20 -> 1912.10628 | J161: =[1]主表!$H159 -> 62.7606 | K161: =[1]主表!$G159 -> 62.7606 | L161: 1 | M161: =[1]主表!$I159 -> 0 | N161: =[1]主表!$E159 -> 6276 | O161: 32 | P161: 6 | Q161: 16 | R161: 6
A162: 158 | B162: 158 | C162: 6 | D162: 16 | E162: 8 | F162: 合体期 | G162: 前 | H162: 8 | I162: =[1]主表!$F160*20 -> 1953.357787 | J162: =[1]主表!$H160 -> 63.9746 | K162: =[1]主表!$G160 -> 63.9746 | L162: 1 | M162: =[1]主表!$I160 -> 0 | N162: =[1]主表!$E160 -> 6397 | O162: 32 | P162: 6 | Q162: 16 | R162: 6
A163: 159 | B163: 159 | C163: 6 | D163: 16 | E163: 9 | F163: 合体期 | G163: 前 | H163: 9 | I163: =[1]主表!$F161*20 -> 1996.04718 | J163: =[1]主表!$H161 -> 65.2303 | K163: =[1]主表!$G161 -> 65.2303 | L163: 1 | M163: =[1]主表!$I161 -> 0 | N163: =[1]主表!$E161 -> 6523 | O163: 32 | P163: 6 | Q163: 16 | R163: 6
A164: 160 | B164: 160 | C164: 6 | D164: 16 | E164: 10 | F164: 合体期 | G164: 前 | H164: 10 | I164: =[1]主表!$F162*20 -> 2137.344 | J164: =[1]主表!$H162 -> 69.696 | K164: =[1]主表!$G162 -> 69.696 | L164: 1 | M164: =[1]主表!$I162 -> 83.64 | N164: =[1]主表!$E162 -> 6970 | O164: 32 | P164: 6 | Q164: 16 | R164: 6
A165: 161 | B165: 161 | C165: 6 | D165: 17 | E165: 1 | F165: 合体期 | G165: 中 | H165: 1 | I165: =[1]主表!$F163*20 -> 2183.44352 | J165: =[1]主表!$H163 -> 71.0448 | K165: =[1]主表!$G163 -> 71.0448 | L165: 1 | M165: =[1]主表!$I163 -> 85.25 | N165: =[1]主表!$E163 -> 7104 | O165: 33 | P165: 6 | Q165: 17 | R165: 6
A166: 162 | B166: 162 | C166: 6 | D166: 17 | E166: 2 | F166: 合体期 | G166: 中 | H166: 2 | I166: =[1]主表!$F164*20 -> 2231.03496 | J166: =[1]主表!$H164 -> 72.4362 | K166: =[1]主表!$G164 -> 72.4362 | L166: 1 | M166: =[1]主表!$I164 -> 86.93 | N166: =[1]主表!$E164 -> 7244 | O166: 33 | P166: 6 | Q166: 17 | R166: 6
A167: 163 | B167: 163 | C167: 6 | D167: 17 | E167: 3 | F167: 合体期 | G167: 中 | H167: 3 | I167: =[1]主表!$F165*20 -> 2279.01564 | J167: =[1]主表!$H165 -> 73.8342 | K167: =[1]主表!$G165 -> 73.8342 | L167: 1 | M167: =[1]主表!$I165 -> 88.6 | N167: =[1]主表!$E165 -> 7383 | O167: 33 | P167: 6 | Q167: 17 | R167: 6
A168: 164 | B168: 164 | C168: 6 | D168: 17 | E168: 4 | F168: 合体期 | G168: 中 | H168: 4 | I168: =[1]主表!$F166*20 -> 2327.38688 | J168: =[1]主表!$H166 -> 75.2388 | K168: =[1]主表!$G166 -> 75.2388 | L168: 1 | M168: =[1]主表!$I166 -> 90.29 | N168: =[1]主表!$E166 -> 7524 | O168: 33 | P168: 6 | Q168: 17 | R168: 6
A169: 165 | B169: 165 | C169: 6 | D169: 17 | E169: 5 | F169: 合体期 | G169: 中 | H169: 5 | I169: =[1]主表!$F167*20 -> 2377.2815 | J169: =[1]主表!$H167 -> 76.6865 | K169: =[1]主表!$G167 -> 76.6865 | L169: 1 | M169: =[1]主表!$I167 -> 92.03 | N169: =[1]主表!$E167 -> 7669 | O169: 33 | P169: 6 | Q169: 17 | R169: 6
A170: 166 | B170: 166 | C170: 6 | D170: 17 | E170: 6 | F170: 合体期 | G170: 中 | H170: 6 | I170: =[1]主表!$F168*20 -> 2428.71744 | J170: =[1]主表!$H168 -> 78.1776 | K170: =[1]主表!$G168 -> 78.1776 | L170: 1 | M170: =[1]主表!$I168 -> 93.82 | N170: =[1]主表!$E168 -> 7818 | O170: 34 | P170: 6 | Q170: 17 | R170: 6
A171: 167 | B171: 167 | C171: 6 | D171: 17 | E171: 7 | F171: 合体期 | G171: 中 | H171: 7 | I171: =[1]主表!$F169*20 -> 2480.570127 | J171: =[1]主表!$H169 -> 79.6757 | K171: =[1]主表!$G169 -> 79.6757 | L171: 1 | M171: =[1]主表!$I169 -> 95.62 | N171: =[1]主表!$E169 -> 7968 | O171: 34 | P171: 6 | Q171: 17 | R171: 6
A172: 168 | B172: 168 | C172: 6 | D172: 17 | E172: 8 | F172: 合体期 | G172: 中 | H172: 8 | I172: =[1]主表!$F170*20 -> 2533.98912 | J172: =[1]主表!$H170 -> 81.2176 | K172: =[1]主表!$G170 -> 81.2176 | L172: 1 | M172: =[1]主表!$I170 -> 97.46 | N172: =[1]主表!$E170 -> 8122 | O172: 34 | P172: 6 | Q172: 17 | R172: 6
A173: 169 | B173: 169 | C173: 6 | D173: 17 | E173: 9 | F173: 合体期 | G173: 中 | H173: 9 | I173: =[1]主表!$F171*20 -> 2587.83882 | J173: =[1]主表!$H171 -> 82.7667 | K173: =[1]主表!$G171 -> 82.7667 | L173: 1 | M173: =[1]主表!$I171 -> 99.32 | N173: =[1]主表!$E171 -> 8277 | O173: 34 | P173: 6 | Q173: 17 | R173: 6
A174: 170 | B174: 170 | C174: 6 | D174: 17 | E174: 10 | F174: 合体期 | G174: 中 | H174: 10 | I174: =[1]主表!$F172*20 -> 2771.966 | J174: =[1]主表!$H172 -> 88.467 | K174: =[1]主表!$G172 -> 88.467 | L174: 1 | M174: =[1]主表!$I172 -> 123.86 | N174: =[1]主表!$E172 -> 8847 | O174: 34 | P174: 6 | Q174: 17 | R174: 6
A175: 171 | B175: 171 | C175: 6 | D175: 18 | E175: 1 | F175: 合体期 | G175: 后 | H175: 1 | I175: =[1]主表!$F173*20 -> 2830.8042 | J175: =[1]主表!$H173 -> 90.153 | K175: =[1]主表!$G173 -> 90.153 | L175: 1 | M175: =[1]主表!$I173 -> 126.21 | N175: =[1]主表!$E173 -> 9015 | O175: 35 | P175: 6 | Q175: 18 | R175: 6
A176: 172 | B176: 172 | C176: 6 | D176: 18 | E176: 2 | F176: 合体期 | G176: 后 | H176: 2 | I176: =[1]主表!$F174*20 -> 2891.2832 | J176: =[1]主表!$H174 -> 91.884 | K176: =[1]主表!$G174 -> 91.884 | L176: 1 | M176: =[1]主表!$I174 -> 128.63 | N176: =[1]主表!$E174 -> 9188 | O176: 35 | P176: 6 | Q176: 18 | R176: 6
A177: 173 | B177: 173 | C177: 6 | D177: 18 | E177: 3 | F177: 合体期 | G177: 后 | H177: 3 | I177: =[1]主表!$F175*20 -> 2953.42146 | J177: =[1]主表!$H175 -> 93.6603 | K177: =[1]主表!$G175 -> 93.6603 | L177: 1 | M177: =[1]主表!$I175 -> 131.12 | N177: =[1]主表!$E175 -> 9366 | O177: 35 | P177: 6 | Q177: 18 | R177: 6
A178: 174 | B178: 174 | C178: 6 | D178: 18 | E178: 4 | F178: 合体期 | G178: 后 | H178: 4 | I178: =[1]主表!$F176*20 -> 3016.05568 | J178: =[1]主表!$H176 -> 95.4448 | K178: =[1]主表!$G176 -> 95.4448 | L178: 1 | M178: =[1]主表!$I176 -> 133.62 | N178: =[1]主表!$E176 -> 9544 | O178: 35 | P178: 6 | Q178: 18 | R178: 6
A179: 175 | B179: 175 | C179: 6 | D179: 18 | E179: 5 | F179: 合体期 | G179: 后 | H179: 5 | I179: =[1]主表!$F177*20 -> 3080.375 | J179: =[1]主表!$H177 -> 97.275 | K179: =[1]主表!$G177 -> 97.275 | L179: 1 | M179: =[1]主表!$I177 -> 136.19 | N179: =[1]主表!$E177 -> 9728 | O179: 35 | P179: 6 | Q179: 18 | R179: 6
A180: 176 | B180: 176 | C180: 6 | D180: 18 | E180: 6 | F180: 合体期 | G180: 后 | H180: 6 | I180: =[1]主表!$F178*20 -> 3146.39808 | J180: =[1]主表!$H178 -> 99.1512 | K180: =[1]主表!$G178 -> 99.1512 | L180: 1 | M180: =[1]主表!$I178 -> 138.81 | N180: =[1]主表!$E178 -> 9915 | O180: 36 | P180: 6 | Q180: 18 | R180: 6
A181: 177 | B181: 177 | C181: 6 | D181: 18 | E181: 7 | F181: 合体期 | G181: 后 | H181: 7 | I181: =[1]主表!$F179*20 -> 3212.9448 | J181: =[1]主表!$H179 -> 101.036 | K181: =[1]主表!$G179 -> 101.036 | L181: 1 | M181: =[1]主表!$I179 -> 141.46 | N181: =[1]主表!$E179 -> 10104 | O181: 36 | P181: 6 | Q181: 18 | R181: 6
A182: 178 | B182: 178 | C182: 6 | D182: 18 | E182: 8 | F182: 合体期 | G182: 后 | H182: 8 | I182: =[1]主表!$F180*20 -> 3281.22144 | J182: =[1]主表!$H180 -> 102.9672 | K182: =[1]主表!$G180 -> 102.9672 | L182: 1 | M182: =[1]主表!$I180 -> 144.16 | N182: =[1]主表!$E180 -> 10297 | O182: 36 | P182: 6 | Q182: 18 | R182: 6
A183: 179 | B183: 179 | C183: 6 | D183: 18 | E183: 9 | F183: 合体期 | G183: 后 | H183: 9 | I183: =[1]主表!$F181*20 -> 3351.24686 | J183: =[1]主表!$H181 -> 104.9451 | K183: =[1]主表!$G181 -> 104.9451 | L183: 1 | M183: =[1]主表!$I181 -> 146.93 | N183: =[1]主表!$E181 -> 10495 | O183: 36 | P183: 6 | Q183: 18 | R183: 6
A184: 180 | B184: 180 | C184: 6 | D184: 18 | E184: 10 | F184: 合体期 | G184: 后 | H184: 10 | I184: =[1]主表!$F182*20 -> 3810.944 | J184: =[1]主表!$H182 -> 119.092 | K184: =[1]主表!$G182 -> 119.092 | L184: 1 | M184: =[1]主表!$I182 -> 238.18 | N184: =[1]主表!$E182 -> 11909 | O184: 36 | P184: 6 | Q184: 18 | R184: 6
A185: 181 | B185: 181 | C185: 7 | D185: 19 | E185: 1 | F185: 大乘期 | G185: 前 | H185: 1 | I185: =[1]主表!$F183*20 -> 3892.46364 | J185: =[1]主表!$H183 -> 121.3866 | K185: =[1]主表!$G183 -> 121.3866 | L185: 1 | M185: =[1]主表!$I183 -> 242.78 | N185: =[1]主表!$E183 -> 12139 | O185: 37 | P185: 7 | Q185: 19 | R185: 7
A186: 182 | B186: 182 | C186: 7 | D186: 19 | E186: 2 | F186: 大乘期 | G186: 前 | H186: 2 | I186: =[1]主表!$F184*20 -> 3974.623413 | J186: =[1]主表!$H184 -> 123.6916 | K186: =[1]主表!$G184 -> 123.6916 | L186: 1 | M186: =[1]主表!$I184 -> 247.38 | N186: =[1]主表!$E184 -> 12369 | O186: 37 | P186: 7 | Q186: 19 | R186: 7
A187: 183 | B187: 183 | C187: 7 | D187: 19 | E187: 3 | F187: 大乘期 | G187: 前 | H187: 3 | I187: =[1]主表!$F185*20 -> 4059.89192 | J187: =[1]主表!$H185 -> 126.0836 | K187: =[1]主表!$G185 -> 126.0836 | L187: 1 | M187: =[1]主表!$I185 -> 252.16 | N187: =[1]主表!$E185 -> 12608 | O187: 37 | P187: 7 | Q187: 19 | R187: 7
A188: 184 | B188: 184 | C188: 7 | D188: 19 | E188: 4 | F188: 大乘期 | G188: 前 | H188: 4 | I188: =[1]主表!$F186*20 -> 4145.82784 | J188: =[1]主表!$H186 -> 128.4864 | K188: =[1]主表!$G186 -> 128.4864 | L188: 1 | M188: =[1]主表!$I186 -> 256.98 | N188: =[1]主表!$E186 -> 12849 | O188: 37 | P188: 7 | Q188: 19 | R188: 7
A189: 185 | B189: 185 | C189: 7 | D189: 19 | E189: 5 | F189: 大乘期 | G189: 前 | H189: 5 | I189: =[1]主表!$F187*20 -> 4233.678167 | J189: =[1]主表!$H187 -> 130.9385 | K189: =[1]主表!$G187 -> 130.9385 | L189: 1 | M189: =[1]主表!$I187 -> 261.88 | N189: =[1]主表!$E187 -> 13094 | O189: 37 | P189: 7 | Q189: 19 | R189: 7
A190: 186 | B190: 186 | C190: 7 | D190: 19 | E190: 6 | F190: 大乘期 | G190: 前 | H190: 6 | I190: =[1]主表!$F188*20 -> 4323.46248 | J190: =[1]主表!$H188 -> 133.4402 | K190: =[1]主表!$G188 -> 133.4402 | L190: 1 | M190: =[1]主表!$I188 -> 266.88 | N190: =[1]主表!$E188 -> 13344 | O190: 38 | P190: 7 | Q190: 19 | R190: 7
A191: 187 | B191: 187 | C191: 7 | D191: 19 | E191: 7 | F191: 大乘期 | G191: 前 | H191: 7 | I191: =[1]主表!$F189*20 -> 4415.20044 | J191: =[1]主表!$H189 -> 135.9918 | K191: =[1]主表!$G189 -> 135.9918 | L191: 1 | M191: =[1]主表!$I189 -> 271.98 | N191: =[1]主表!$E189 -> 13599 | O191: 38 | P191: 7 | Q191: 19 | R191: 7
A192: 188 | B192: 188 | C192: 7 | D192: 19 | E192: 8 | F192: 大乘期 | G192: 前 | H192: 8 | I192: =[1]主表!$F190*20 -> 4508.911787 | J192: =[1]主表!$H190 -> 138.5936 | K192: =[1]主表!$G190 -> 138.5936 | L192: 1 | M192: =[1]主表!$I190 -> 277.18 | N192: =[1]主表!$E190 -> 13859 | O192: 38 | P192: 7 | Q192: 19 | R192: 7
A193: 189 | B193: 189 | C193: 7 | D193: 19 | E193: 9 | F193: 大乘期 | G193: 前 | H193: 9 | I193: =[1]主表!$F191*20 -> 4604.61634 | J193: =[1]主表!$H191 -> 141.2459 | K193: =[1]主表!$G191 -> 141.2459 | L193: 1 | M193: =[1]主表!$I191 -> 282.5 | N193: =[1]主表!$E191 -> 14125 | O193: 38 | P193: 7 | Q193: 19 | R193: 7
A194: 190 | B194: 190 | C194: 7 | D194: 19 | E194: 10 | F194: 大乘期 | G194: 前 | H194: 10 | I194: =[1]主表!$F192*20 -> 4930.38 | J194: =[1]主表!$H192 -> 150.93 | K194: =[1]主表!$G192 -> 150.93 | L194: 1 | M194: =[1]主表!$I192 -> 332.05 | N194: =[1]主表!$E192 -> 15093 | O194: 38 | P194: 7 | Q194: 19 | R194: 7
A195: 191 | B195: 191 | C195: 7 | D195: 20 | E195: 1 | F195: 大乘期 | G195: 中 | H195: 1 | I195: =[1]主表!$F193*20 -> 5035.021693 | J195: =[1]主表!$H193 -> 153.8194 | K195: =[1]主表!$G193 -> 153.8194 | L195: 1 | M195: =[1]主表!$I193 -> 338.4 | N195: =[1]主表!$E193 -> 15382 | O195: 39 | P195: 7 | Q195: 20 | R195: 7
A196: 192 | B196: 192 | C196: 7 | D196: 20 | E196: 2 | F196: 大乘期 | G196: 中 | H196: 2 | I196: =[1]主表!$F194*20 -> 5140.46848 | J196: =[1]主表!$H194 -> 156.7216 | K196: =[1]主表!$G194 -> 156.7216 | L196: 1 | M196: =[1]主表!$I194 -> 344.78 | N196: =[1]主表!$E194 -> 15672 | O196: 39 | P196: 7 | Q196: 20 | R196: 7
A197: 193 | B197: 193 | C197: 7 | D197: 20 | E197: 3 | F197: 大乘期 | G197: 中 | H197: 3 | I197: =[1]主表!$F195*20 -> 5249.30624 | J197: =[1]主表!$H195 -> 159.7152 | K197: =[1]主表!$G195 -> 159.7152 | L197: 1 | M197: =[1]主表!$I195 -> 351.38 | N197: =[1]主表!$E195 -> 15972 | O197: 39 | P197: 7 | Q197: 20 | R197: 7
A198: 194 | B198: 194 | C198: 7 | D198: 20 | E198: =H198 -> 4 | F198: 大乘期 | G198: 中 | H198: 4 | I198: =[1]主表!$F196*20 -> 5360.27544 | J198: =[1]主表!$H196 -> 162.7614 | K198: =[1]主表!$G196 -> 162.7614 | L198: 1 | M198: =[1]主表!$I196 -> 358.07 | N198: =[1]主表!$E196 -> 16276 | O198: 39 | P198: 7 | Q198: 20 | R198: 7
A199: 195 | B199: 195 | C199: 7 | D199: 20 | E199: 5 | F199: 大乘期 | G199: 中 | H199: 5 | I199: =[1]主表!$F197*20 -> 5473.3965 | J199: =[1]主表!$H197 -> 165.8605 | K199: =[1]主表!$G197 -> 165.8605 | L199: 1 | M199: =[1]主表!$I197 -> 364.89 | N199: =[1]主表!$E197 -> 16586 | O199: 39 | P199: 7 | Q199: 20 | R199: 7
A200: 196 | B200: 196 | C200: 7 | D200: 20 | E200: 6 | F200: 大乘期 | G200: 中 | H200: 6 | I200: =[1]主表!$F198*20 -> 5588.68992 | J200: =[1]主表!$H198 -> 169.0128 | K200: =[1]主表!$G198 -> 169.0128 | L200: 1 | M200: =[1]主表!$I198 -> 371.82 | N200: =[1]主表!$E198 -> 16901 | O200: 40 | P200: 7 | Q200: 20 | R200: 7
A201: 197 | B201: 197 | C201: 7 | D201: 20 | E201: 7 | F201: 大乘期 | G201: 中 | H201: 7 | I201: =[1]主表!$F199*20 -> 5707.491673 | J201: =[1]主表!$H199 -> 172.2583 | K201: =[1]主表!$G199 -> 172.2583 | L201: 1 | M201: =[1]主表!$I199 -> 378.97 | N201: =[1]主表!$E199 -> 17226 | O201: 40 | P201: 7 | Q201: 20 | R201: 7
... 103 more rows
